fUST/lending_fUST_20250619
["ID","MTS","AMOUNT","RATE_DAILY","PERIOD"]
[366623407,1750339847209,-1363.58757827,0.000239,2]
[366623408,1750339847221,-2299.4017045,0.000239,2]
[366623409,1750339847232,-926.43617275,0.000239,2]
[366623410,1750339847242,-2200.0,0.000239,2]
[366623411,1750339847251,-268.0,0.00023917,2]
[366623412,1750339847261,-200.0,0.00023921,30]
[366623413,1750339847270,-200.0,0.00023921,30]
[366623414,1750339847279,-200.0,0.00023921,30]
[366623415,1750339847289,-200.0,0.00023921,30]
[366623416,1750339847298,-318092.50976557,0.0002394,7]
[366623417,1750339847307,-19110.85183336,0.0002394,7]
[366623418,1750339847316,-151.0,0.0002394,7]
[366623419,1750339847326,-151.0,0.0002394,7]
[366623420,1750339847335,-152.816431,0.0002394,7]
[366623421,1750339847344,-151.0,0.0002394,7]
[366623422,1750339847354,-1335.92675114,0.00023969,10]
[366623423,1750339847363,-500.0,0.00023973,2]
[366623424,1750339847372,-600.0,0.00023973,2]
[366623425,1750339847382,-500.0,0.00023973,2]
[366623426,1750339847391,-151.0,0.00023981,7]
[366623427,1750339847400,-26076.03917634,0.0002399,2]
[366623428,1750339847505,-3677.29040973,0.0002399,2]
[366623429,1750339847518,-10144.52965311,0.0002399,2]
[366623498,1750339924722,927.78,0.00020783,2]
[366623499,1750339932694,497.28908346,0.00020293,2]
[366623500,1750339946476,500.0,0.00021164,2]
[366623501,1750339953485,1622.0,0.00020421,2]
[366623502,1750339959034,200.03128008,0.0002118,2]
[366623505,1750340008492,915.97,0.00020775,2]
[366623506,1750340035857,419.9166924,0.00020421,2]
[366623507,1750340041290,250.0,0.00020135,2]
[366623508,1750340060756,3386.39394431,0.000212,2]
[366623509,1750340060782,1613.60605569,0.000212,2]
[366623510,1750340072918,666.0,0.00021006,2]
[366623511,1750340076855,582.40299927,0.000212,2]
[366623512,1750340082163,276.57120582,0.00021184,2]
[366623513,1750340093746,4566.1526116,0.00020421,2]
[366623514,1750340094815,904.31,0.00020777,2]
[366623515,1750340103154,1072.30651077,0.00019,2]
[366623517,1750340149665,318.65061685,0.000212,2]
[366623518,1750340149689,9681.34938315,0.000212,2]
[366623519,1750340158386,318.65061685,0.0002115,2]
[366623520,1750340158411,281.34938315,0.0002115,2]
[366623521,1750340179377,892.8,0.0002078,2]
[366623522,1750340181343,158.018576,0.00013699,2]
[366623524,1750340193610,705.155901,0.0002094,2]
[366623525,1750340205641,7506.0,0.000212,2]
[366623526,1750340258104,456.67613985,0.000212,2]
[366623527,1750340258129,4543.32386015,0.000212,2]
[366623528,1750340263837,881.44,0.00020778,2]
[366623529,1750340348163,874.35,0.00021133,2]
[366623530,1750340356392,1502.9364558,0.00020873,2]
[366623531,1750340383848,165.9427235,0.00021182,2]
[366623532,1750340425193,198.5643089,0.0002087,2]
[366623533,1750340427027,1833.44265165,0.000212,2]
[366623534,1750340427054,3166.55734835,0.000212,2]
[366623535,1750340433829,863.22,0.0002111,2]
[366623536,1750340437744,200.03128008,0.00021179,2]
[366623537,1750340439656,158.32505329,0.00013699,2]
[366623538,1750340519966,906.85,0.00021111,2]
[366623539,1750340530990,500.0,0.0002115,2]
[366623540,1750340563376,10000.0,0.00024658,120]
[366623541,1750340604510,908.67,0.00021112,2]
[366623542,1750340610033,154.66013963,6.9e-07,2]
[366623543,1750340618087,3141.68617865,0.00020873,2]
[366623544,1750340618112,10000.0,0.00020873,2]
[366623545,1750340618135,10000.0,0.00020873,2]
[366623546,1750340618160,1758.31382135,0.00020873,2]
[366623547,1750340658338,5000.0,0.000212,2]
[366623548,1750340676043,3241.68617865,0.000212,2]
[366623549,1750340676070,1758.31382135,0.000212,2]
[366623550,1750340685659,183.2179697,0.00021179,2]
[366623551,1750340689848,941.02,0.0002111,2]
[366623552,1750340693178,5000.0,0.000212,2]
[366623553,1750340703103,150.26498568,0.000191,2]
[366623555,1750340709518,1967.18322327,0.000212,2]
[366623556,1750340709544,3032.81677673,0.000212,2]
[366623557,1750340727558,5000.0,0.000212,2]
[366623558,1750340742641,1967.18322327,0.00020978,2]
[366623559,1750340742666,10000.0,0.00020978,2]
[366623560,1750340742690,10000.0,0.00020978,2]
[366623561,1750340742713,10000.0,0.00020978,2]
[366623562,1750340742737,3905.69995313,0.00020978,2]
[366623563,1750340744362,5000.0,0.000212,2]
[366623564,1750340749503,1094.30004687,0.00020991,2]
[366623565,1750340749529,10000.0,0.00020991,2]
[366623566,1750340749554,4804.16375023,0.00020991,2]
[366623567,1750340774920,929.04,0.00021113,2]
[366623568,1750340776407,4266.79624977,0.000212,2]
[366623569,1750340776434,733.20375023,0.000212,2]
[366623570,1750340780650,1578.94895554,0.000191,2]
[366623572,1750340792223,5000.0,0.000212,2]
[366623574,1750340808781,2687.84729423,0.000212,2]
[366623575,1750340808808,2312.15270577,0.000212,2]
[366623576,1750340815697,1052.63263702,0.000191,2]
[366623578,1750340824796,5000.0,0.000212,2]
[366623580,1750340841768,1635.21465721,0.000212,2]
[366623581,1750340841795,3364.78534279,0.000212,2]
[366623582,1750340858494,5000.0,0.000212,2]
[366623583,1750340859303,169.951608,0.00021037,2]
[366623584,1750340859508,169.951608,0.00021142,2]
[366623585,1750340859947,917.22,0.00021113,2]
[366623586,1750340874768,378.09144121,0.000212,2]
[366623587,1750340874794,4621.90855879,0.000212,2]
[366623589,1750340891036,3345.5276832,0.000212,2]
[366623590,1750340897890,206.6897133,0.00020976,2]
[366623591,1750340907414,500.0,0.00020154,2]
[366623593,1750340911802,153.37185513,0.00021179,2]
[366623595,1750340946631,905.54,0.00021112,2]
[366623598,1750340987512,211.35235846,0.00020641,2]
[366623606,1750341003092,55.60983112,0.000191,2]
[366623607,1750341003119,94.65515456,0.000191,2]
[366623643,1750341032554,-836.1357872,0.00021279,2]
[366623645,1750341032564,-160.0,0.00021279,2]
[366623647,1750341032573,-213.47708638,0.00021279,2]
[366623649,1750341032583,-160.0,0.00021279,2]
[366623652,1750341032592,-230.0259007,0.00021279,2]
[366623653,1750341032602,-1200.0,0.00021305,2]
[366623655,1750341032611,-424.78309573,0.00021306,2]
[366623657,1750341032620,-78.80456589,0.00021817,2]
[366623734,1750341033382,894.02,0.00021125,2]
[366623775,1750341038469,-887.77651497,0.00021817,2]
[366623776,1750341038479,-207.4,0.00021821,2]
[366623777,1750341038488,-300.0,0.00021831,2]
[366623778,1750341038498,-300.0,0.00021831,2]
[366623779,1750341038507,-500.0,0.00021831,2]
[366623780,1750341038516,-325.23482509,0.00021831,2]
[366623781,1750341038528,-500.0,0.00021831,2]
[366623782,1750341038537,-500.0,0.00021831,2]
[366623783,1750341038546,-500.0,0.00021831,2]
[366623784,1750341038556,-500.0,0.00021831,2]
[366623785,1750341038566,-500.0,0.00021831,2]
[366623786,1750341038575,-500.0,0.00021831,2]
[366623787,1750341038585,-500.0,0.00021831,2]
[366623788,1750341038594,-500.0,0.00021831,2]
[366623789,1750341038604,-500.0,0.00021831,2]
[366623790,1750341038614,-438.79483875,0.00021831,2]
[366623791,1750341038623,-354.69109989,0.00021831,2]
[366623792,1750341038634,-500.0,0.00021831,2]
[366623793,1750341038643,-201.50848097,0.00021831,2]
[366623794,1750341038653,-500.0,0.00021831,2]
[366623795,1750341038662,-500.0,0.00021831,2]
[366623796,1750341038672,-500.0,0.00021831,2]
[366623797,1750341038682,-500.0,0.00021831,2]
[366623798,1750341038691,-500.0,0.00021831,2]
[366623799,1750341038700,-500.0,0.00021831,2]
[366623800,1750341038710,-500.0,0.00021831,2]
[366623801,1750341038720,-500.0,0.00021831,2]
[366623802,1750341038730,-500.0,0.00021831,2]
[366623803,1750341038740,-500.0,0.00021831,2]
[366623804,1750341038750,-500.0,0.00021831,2]
[366623805,1750341038760,-339.40646815,0.00021831,2]
[366623806,1750341038769,-500.0,0.00021831,2]
[366623807,1750341038781,-500.0,0.00021831,2]
[366623808,1750341038790,-500.0,0.00021831,2]
[366623809,1750341038800,-300.0,0.00021832,2]
[366623810,1750341038809,-810.13469375,0.000219,6]
[366623811,1750341038821,-1000.0,0.00021916,2]
[366623812,1750341038832,-500.0,0.00021917,6]
[366623813,1750341038842,-460.0,0.00021917,6]
[366623814,1750341038852,-489.79383217,0.00021917,6]
[366623815,1750341038861,-461.13021762,0.00021917,6]
[366623816,1750341038870,-460.0,0.00021917,6]
[366623817,1750341038880,-152.436,0.00021917,2]
[366623818,1750341038889,-460.0,0.00021917,6]
[366623819,1750341038899,-460.0,0.00021917,6]
[366623820,1750341038908,-460.0,0.00021917,6]
[366623821,1750341038918,-940.68,0.00021917,6]
[366623822,1750341038927,-460.0,0.00021917,6]
[366623823,1750341038937,-460.0,0.00021917,6]
[366623824,1750341038947,-460.0,0.00021917,6]
[366623825,1750341038956,-607.93,0.00021917,6]
[366623826,1750341038967,-460.0,0.00021917,6]
[366623827,1750341038979,-775.28,0.00021917,6]
[366623828,1750341038988,-728.04,0.00021917,6]
[366623829,1750341038998,-575.23,0.00021917,6]
[366623830,1750341039007,-460.0,0.00021917,6]
[366623831,1750341039017,-460.0,0.00021917,6]
[366623832,1750341039028,-460.0,0.00021917,6]
[366623833,1750341039038,-569.38,0.00021917,6]
[366623834,1750341039047,-689.68,0.00021917,6]
[366623835,1750341039056,-460.0,0.00021917,6]
[366623836,1750341039066,-460.0,0.00021917,6]
[366623837,1750341039076,-460.0,0.00021917,6]
[366623838,1750341039085,-460.0,0.00021917,6]
[366623839,1750341039095,-460.0,0.00021917,2]
[366623840,1750341039104,-460.0,0.00021917,6]
[366623841,1750341039113,-810.13469354,0.00022038,6]
[366623842,1750341039123,-810.13469354,0.00022176,6]
[366623843,1750341039132,-460.0,0.00022191,6]
[366623844,1750341039141,-460.0,0.00022191,6]
[366623845,1750341039151,-422.83411543,0.00022191,6]
[366623846,1750341039161,-460.0,0.00022191,6]
[366623847,1750341039170,-940.68,0.00022191,6]
[366623848,1750341039180,-460.0,0.00022191,6]
[366623849,1750341039189,-460.0,0.00022191,6]
[366623850,1750341039199,-460.0,0.00022191,6]
[366623851,1750341039209,-607.93,0.00022191,6]
[366623852,1750341039218,-775.28,0.00022191,6]
[366623853,1750341039227,-728.04,0.00022191,6]
[366623854,1750341039236,-575.23,0.00022191,6]
[366623855,1750341039245,-460.0,0.00022191,6]
[366623856,1750341039255,-460.0,0.00022191,6]
[366623857,1750341039265,-460.0,0.00022191,6]
[366623858,1750341039276,-569.38,0.00022191,6]
[366623859,1750341039286,-689.68,0.00022191,6]
[366623860,1750341039295,-460.0,0.00022191,6]
[366623861,1750341039305,-460.0,0.00022191,6]
[366623862,1750341039314,-460.0,0.00022191,6]
[366623863,1750341039324,-460.0,0.00022191,6]
[366623864,1750341039334,-460.0,0.00022191,2]
[366623865,1750341039343,-460.0,0.00022191,6]
[366623866,1750341039353,-180.27526799,0.000222,2]
[366623867,1750341039362,-966.58108083,0.00022279,2]
[366623868,1750341039371,-810.13469354,0.00022314,7]
[366623869,1750341039381,-200.0,0.00022346,2]
[366623870,1750341039390,-500.0,0.00022377,2]
[366623871,1750341039400,-858.95690863,0.00022391,2]
[366623872,1750341039409,-500.0,0.00022393,2]
[366623873,1750341039419,-500.0,0.00022393,2]
[366623874,1750341039429,-500.0,0.00022393,2]
[366623875,1750341039439,-500.0,0.00022393,2]
[366623876,1750341039449,-500.0,0.00022393,2]
[366623877,1750341039459,-500.0,0.00022393,2]
[366623878,1750341039469,-501.95007019,0.00022393,2]
[366623879,1750341039478,-500.0,0.00022393,2]
[366623880,1750341039487,-500.0,0.00022393,2]
[366623881,1750341039496,-508.00991228,0.00022394,2]
[366623882,1750341039506,-500.0,0.00022394,2]
[366623883,1750341039515,-160.0,0.00022404,2]
[366623884,1750341039527,-712.81,0.00022406,5]
[366623885,1750341039680,-965.0,0.00022414,2]
[366623886,1750341039690,-2160.0,0.00022414,2]
[366623887,1750341039700,-654.0,0.00022414,2]
[366623888,1750341039711,-150.0,0.00022414,2]
[366623889,1750341039720,-500.0,0.00022431,2]
[366623890,1750341039730,-517.40778635,0.00022431,2]
[366623891,1750341039739,-500.0,0.00022437,2]
[366623892,1750341039747,-500.0,0.00022437,2]
[366623893,1750341039756,-810.13469354,0.00022452,7]
[366623894,1750341039766,-278.30852922,0.00022457,2]
[366623895,1750341039777,-500.0,0.00022457,2]
[366623896,1750341039787,-500.0,0.00022457,2]
[366623897,1750341039797,-500.0,0.00022457,2]
[366623898,1750341039806,-500.0,0.00022457,2]
[366623899,1750341039816,-500.0,0.00022457,2]
[366623900,1750341039826,-500.0,0.00022457,2]
[366623901,1750341039836,-500.0,0.00022457,2]
[366623902,1750341039845,-500.0,0.00022457,2]
[366623903,1750341039855,-500.0,0.00022457,2]
[366623904,1750341039865,-500.0,0.00022457,2]
[366623905,1750341039876,-500.0,0.00022457,2]
[366623906,1750341039886,-500.0,0.00022457,2]
[366623907,1750341039896,-500.0,0.00022457,2]
[366623908,1750341039907,-500.0,0.00022457,2]
[366623909,1750341039917,-460.0,0.00022465,6]
[366623910,1750341039926,-460.0,0.00022465,6]
[366623911,1750341039936,-460.0,0.00022465,6]
[366623912,1750341039945,-940.68,0.00022465,6]
[366623913,1750341039956,-460.0,0.00022465,6]
[366623914,1750341039966,-460.0,0.00022465,6]
[366623915,1750341039978,-460.0,0.00022465,6]
[366623916,1750341039988,-607.93,0.00022465,6]
[366623917,1750341039998,-775.28,0.00022465,6]
[366623918,1750341040008,-575.23,0.00022465,6]
[366623919,1750341040020,-728.04,0.00022465,6]
[366623920,1750341040030,-252.73738686,0.00022465,6]
[366623921,1750341040039,-460.0,0.00022465,6]
[366623922,1750341040050,-460.0,0.00022465,6]
[366623923,1750341040060,-569.38,0.00022465,6]
[366623924,1750341040070,-689.68,0.00022465,6]
[366623925,1750341040079,-460.0,0.00022465,6]
[366623926,1750341040089,-460.0,0.00022465,6]
[366623927,1750341040098,-460.0,0.00022465,6]
[366623928,1750341040108,-460.0,0.00022465,6]
[366623929,1750341040119,-460.0,0.00022465,2]
[366623930,1750341040129,-460.0,0.00022465,6]
[366623931,1750341040139,-500.0,0.000225,2]
[366623932,1750341040149,-712.81,0.00022506,5]
[366623933,1750341040158,-810.13469354,0.0002259,7]
[366623934,1750341040169,-712.81,0.00022606,7]
[366623935,1750341040179,-712.81,0.00022706,7]
[366623936,1750341040189,-810.13469354,0.00022728,7]
[366623937,1750341040199,-460.0,0.00022739,6]
[366623938,1750341040208,-460.0,0.00022739,6]
[366623940,1750341040218,-460.0,0.00022739,6]
[366623941,1750341040228,-940.68,0.00022739,6]
[366623942,1750341040238,-460.0,0.00022739,6]
[366623943,1750341040248,-460.0,0.00022739,6]
[366623944,1750341040257,-460.0,0.00022739,6]
[366623945,1750341040267,-607.93,0.00022739,6]
[366623946,1750341040278,-775.28,0.00022739,6]
[366623947,1750341040287,-575.23,0.00022739,6]
[366623948,1750341040297,-728.04,0.00022739,6]
[366623949,1750341040308,-460.0,0.00022739,6]
[366623950,1750341040318,-460.0,0.00022739,6]
[366623951,1750341040328,-569.38,0.00022739,6]
[366623952,1750341040338,-689.68,0.00022739,6]
[366623954,1750341040348,-460.0,0.00022739,6]
[366623956,1750341040359,-460.0,0.00022739,6]
[366623957,1750341040369,-460.0,0.00022739,6]
[366623958,1750341040379,-460.0,0.00022739,6]
[366623959,1750341040389,-460.0,0.00022739,2]
[366623960,1750341040399,-423.82409287,0.00022739,6]
[366623962,1750341040408,-966.58108083,0.0002274,2]
[366623964,1750341040417,-712.81,0.00022806,6]
[366623966,1750341040427,-810.13469354,0.00022866,8]
[366623968,1750341040437,-712.81,0.00022906,4]
[366623970,1750341040447,-221.14000421,0.00022913,6]
[366623972,1750341040457,-500.0,0.00022941,2]
[366623974,1750341040466,-505.8764289,0.00022941,2]
[366623976,1750341040476,-1090.80487311,0.00022941,2]
[366623978,1750341040486,-1000.0,0.00022941,2]
[366623980,1750341040498,-1000.0,0.00022941,2]
[366623982,1750341040507,-1000.0,0.00022941,2]
[366623984,1750341040516,-1000.0,0.00022941,2]
[366623986,1750341040526,-1000.0,0.00022941,2]
[366623988,1750341040535,-1000.0,0.00022942,2]
[366623990,1750341040545,-500.0,0.00022979,2]
[366623992,1750341040555,-80.3358684,0.00022985,2]
[366624319,1750341043680,-268.66199986,0.00022985,2]
[366624357,1750341047004,-189.05649788,0.00021831,2]
[366624358,1750341047013,-142.36462215,0.00022457,2]
[366624359,1750341047027,-357.63537785,0.00022457,2]
[366624360,1750341047038,-500.0,0.00022457,2]
[366624361,1750341047047,-500.0,0.00022457,2]
[366624362,1750341047057,-500.0,0.00022457,2]
[366624363,1750341047066,-500.0,0.00022457,2]
[366624364,1750341047076,-500.0,0.00022457,2]
[366624365,1750341047085,-500.0,0.00022457,2]
[366624366,1750341047095,-500.0,0.00022457,2]
[366624367,1750341047104,-651.00213174,0.00022985,2]
[366624368,1750341047113,-1000.0,0.00022985,2]
[366624369,1750341047122,-4491.36249041,0.00023,4]
[366624372,1750341082094,701.75509135,0.00020639,2]
[366624373,1750341116786,467.83672757,0.00020639,2]
[366624374,1750341118095,882.64,0.00021122,2]
[366624376,1750341126994,500.0,0.00020154,2]
[366624380,1750341203154,871.4,0.00021129,2]
[366624382,1750341264515,5000.0,0.000212,2]
[366624383,1750341281585,587.69302652,0.000212,2]
[366624384,1750341281609,4412.30697348,0.000212,2]
[366624385,1750341286265,860.31,0.00021108,2]
[366624386,1750341288788,201.65041499,0.00021046,2]
[366624388,1750341292662,289.727906,0.00013699,2]
[366624389,1750341292857,289.727906,0.00020187,2]
[366624390,1750341336927,3038.19815609,0.000212,2]
[366624391,1750341369692,849.36,0.00021125,2]
[366624392,1750341383498,58.71864344,0.00020639,2]
[366624393,1750341383654,332.9370184,0.00020639,2]
[366624394,1750341418974,261.10377456,0.00020639,2]
[366624395,1750341452931,838.55,0.00021126,2]
[366624396,1750341536244,827.88,0.00021125,2]
[366624397,1750341564965,7739.52920704,0.00020843,2]
[366624398,1750341564991,10000.0,0.00020843,2]
[366624415,1750341986252,174.06918304,0.000191,2]
[366624416,1750342009684,-164.72036983,0.0002032,5]
[366624417,1750342009706,-70.27963017,0.0002032,5]
[366624418,1750342021532,150.0,0.000191,2]
[366624469,1750342232964,-1200.0,0.00020541,2]
[366624471,1750342232974,-8014.4853828,0.00020542,2]
[366624473,1750342232986,-1985.5146172,0.00020542,2]
[366624475,1750342232996,-300.0,0.00020548,2]
[366624477,1750342233006,-48.97850732,0.00020548,2]
[366624480,1750342233027,-251.02149268,0.00020548,2]
[366624483,1750342233039,-300.0,0.00020548,2]
[366624485,1750342233050,-300.0,0.00020548,2]
[366624487,1750342233060,-666.0,0.00020549,2]
[366624489,1750342233070,-179.346,0.00020639,2]
[366624491,1750342233081,-5733.80654712,0.00020843,2]
[366625208,1750342244712,-500.0,0.00020547,2]
[366625210,1750342244722,-500.0,0.00020547,2]
[366625212,1750342244731,-500.0,0.00020547,2]
[366625214,1750342244741,-500.0,0.00020547,2]
[366625216,1750342244750,-500.0,0.00020547,2]
[366625218,1750342244760,-500.0,0.00020547,2]
[366625220,1750342244769,-500.0,0.00020547,2]
[366625222,1750342244778,-500.0,0.00020547,2]
[366625224,1750342244787,-318.31664296,0.00020547,2]
[366625495,1750342287701,150.0,0.000189,2]
[366625499,1750342323076,150.0,0.000189,2]
[366625500,1750342329536,-2158.0,0.00020341,2]
[366625501,1750342392507,184.423843,0.00019938,2]
[366625502,1750342455552,174.43225785,0.000201,2]
[366625503,1750342458929,-500.0,0.00020154,2]
[366625512,1750342592127,-182.7354639,0.00020415,2]
[366625513,1750342592149,-300.0,0.00020459,2]
[366625514,1750342592170,-300.0,0.00020459,2]
[366625515,1750342592191,-16793.2645361,0.0002046,2]
[366625518,1750342700049,335.469494,0.00013699,2]
[366625523,1750342730229,-168.0,0.00020187,2]
[366625527,1750342780782,169.361067,0.00019573,2]
[366625528,1750342781030,169.361067,0.00019573,120]
[366625529,1750342783146,5000.0,0.000201,2]
[366625533,1750342844841,190.93150248,0.00024658,120]
[366625535,1750342886912,2820.22392761,0.000201,2]
[366625536,1750342886936,2179.77607239,0.000201,2]
[366625538,1750342902464,5000.0,0.000201,2]
[366625543,1750342918628,3320.22392761,0.000201,2]
[366625544,1750342918654,1679.77607239,0.000201,2]
[366625546,1750342934210,5000.0,0.000201,2]
[366625560,1750343125000,250.0,0.00019943,2]
[366625565,1750343186232,3570.22392761,0.0001943,2]
[366625566,1750343186260,6393.01959719,0.0001943,2]
[366625573,1750343283348,4106.98040281,0.00019453,2]
[366625574,1750343283375,2877.20013379,0.00019453,2]
[366625576,1750343314441,1100.60086796,0.0002,2]
[366625577,1750343314918,321.8018134,0.00019584,2]
[366625578,1750343319294,2149.56853655,0.00018,2]
[366625579,1750343320144,181.34354322,0.0002,2]
[366625580,1750343320872,577.57072109,0.000149,2]
[366625587,1750343325493,3291.91438399,0.0002,2]
[366625588,1750343325518,10500.0,0.0002,2]
[366625589,1750343325543,10500.0,0.0002,2]
[366625590,1750343325569,10500.0,0.0002,2]
[366625591,1750343325594,10500.0,0.0002,2]
[366625592,1750343325618,7359.07902981,0.0002,2]
[366625604,1750343389157,820.100611,0.00019401,2]
[366625608,1750343400364,184.423843,0.00019401,2]
[366625640,1750343431893,-500.0,0.00020154,2]
[366625642,1750343431903,-167.469494,0.00020187,2]
[366625643,1750343431912,-201.40470606,0.00020241,2]
[366625645,1750343431922,-897.52454024,0.00020353,2]
[366625647,1750343431931,-300.0,0.00020452,2]
[366625649,1750343431941,-300.0,0.00020452,2]
[366625651,1750343431952,-300.0,0.00020452,2]
[366625653,1750343431962,-300.0,0.00020452,2]
[366625655,1750343431971,-1200.0,0.00020452,2]
[366625657,1750343431981,-500.0,0.00020453,2]
[366625659,1750343431991,-500.0,0.00020453,2]
[366625661,1750343432002,-500.0,0.00020453,2]
[366625663,1750343432013,-500.0,0.00020453,2]
[366625665,1750343432023,-170.19542188,0.00020453,2]
[366625667,1750343432036,-500.0,0.00020453,2]
[366625669,1750343432046,-646.59183053,0.00020453,2]
[366625671,1750343432056,-572.95598846,0.00020453,2]
[366625673,1750343432064,-500.0,0.00020453,2]
[366625675,1750343432074,-500.0,0.00020453,2]
[366625677,1750343432083,-521.45382248,0.00020453,2]
[366625681,1750343432093,-500.0,0.00020453,2]
[366625683,1750343432103,-194.14872768,0.00020453,2]
[366625686,1750343432113,-500.0,0.00020453,2]
[366625688,1750343432123,-500.0,0.00020453,2]
[366625690,1750343432132,-500.0,0.00020453,2]
[366625692,1750343432142,-500.0,0.00020453,2]
[366625694,1750343432152,-374.36595627,0.00020453,2]
[366625696,1750343432161,-500.0,0.00020453,2]
[366625698,1750343432171,-500.0,0.00020453,2]
[366625700,1750343432180,-500.0,0.00020453,2]
[366625702,1750343432189,-500.0,0.00020453,2]
[366625704,1750343432199,-500.0,0.00020453,2]
[366625706,1750343432208,-500.0,0.00020453,2]
[366625708,1750343432217,-500.0,0.00020453,2]
[366625710,1750343432227,-500.0,0.00020453,2]
[366625712,1750343432236,-500.0,0.00020453,2]
[366625714,1750343432245,-500.0,0.00020453,2]
[366625716,1750343432254,-338.36583005,0.00020453,2]
[366625718,1750343432264,-341.062321,0.00020453,2]
[366625720,1750343432274,-500.0,0.00020453,2]
[366625722,1750343432285,-500.0,0.00020453,2]
[366625724,1750343432294,-500.0,0.00020453,2]
[366625726,1750343432305,-384.45644845,0.00020453,2]
[366625728,1750343432317,-500.0,0.00020453,2]
[366625730,1750343432327,-500.0,0.00020453,2]
[366625732,1750343432336,-500.0,0.00020453,2]
[366625734,1750343432345,-500.0,0.00020453,2]
[366625735,1750343432356,-500.0,0.00020453,2]
[366625736,1750343432365,-500.0,0.00020453,2]
[366625737,1750343432374,-500.0,0.00020453,2]
[366625738,1750343432384,-500.0,0.00020453,2]
[366625739,1750343432394,-500.0,0.00020453,2]
[366625740,1750343432403,-500.0,0.00020453,2]
[366625741,1750343432413,-500.0,0.00020453,2]
[366625742,1750343432422,-500.0,0.00020453,2]
[366625743,1750343432431,-500.0,0.00020453,2]
[366625744,1750343432440,-500.0,0.00020453,2]
[366625745,1750343432449,-500.0,0.00020453,2]
[366625746,1750343432458,-500.0,0.00020453,2]
[366625747,1750343432468,-500.0,0.00020453,2]
[366625748,1750343432478,-500.0,0.00020453,2]
[366625749,1750343432487,-500.0,0.00020453,2]
[366625750,1750343432497,-500.0,0.00020453,2]
[366625751,1750343432506,-500.0,0.00020453,2]
[366625752,1750343432515,-500.0,0.00020453,2]
[366625753,1750343432525,-300.0,0.00020453,2]
[366625754,1750343432535,-1000.0,0.00020457,2]
[366625755,1750343432546,-1000.0,0.00020459,2]
[366625756,1750343432555,-8106.7354639,0.0002046,2]
[366625757,1750343432565,-159.275,0.00020624,2]
[366625758,1750343432574,-897.52454019,0.00021024,2]
[366625759,1750343432584,-306.1887716,0.00021041,2]
[366625760,1750343432594,-153.0,0.00021041,2]
[366625761,1750343432603,-159.0225674,0.00021041,2]
[366625762,1750343432612,-433.0783498,0.00021041,2]
[366625763,1750343432621,-574.3302288,0.00021041,2]
[366625764,1750343432630,-273.6815149,0.00021041,2]
[366625765,1750343432638,-159.0225674,0.00021041,2]
[366625766,1750343432648,-153.0,0.00021041,2]
[366625767,1750343432657,-153.0,0.00021041,2]
[366625768,1750343432666,-574.3302288,0.00021041,2]